bitfinex-derivatives/quotes_SOLF0:USTF0_20250904
["timestamp","ask_amount","ask_price","bid_price","bid_amount"]
[1757013063431,5.23,203.65,203.62,7.4]
[1757013063821,1.94553909,203.66,203.61,0.0372153]
[1757013064332,7.17553909,203.66,203.62,7.4]
[1757013064733,5.23,203.65,203.62,7.4]
[1757013065230,1.94553909,203.67,203.62,7.4]
[1757013065429,5.23,203.66,203.62,7.4]
[1757013068128,1.94553909,203.65,203.61,0.0372153]
[1757013068331,13.44,203.69,203.61,0.0372153]
[1757013068332,5.23,203.62,203.61,0.0372153]
[1757013070929,5.73,203.62,203.53,7.4]
[1757013071129,20.21496723,203.68,203.53,7.4]
[1757013071130,5.23,203.57,203.53,7.4]
[1757013071331,5.23,203.57,203.52,1.94553909]
[1757013071532,1.94553909,203.56,203.49,7.4]
[1757013072635,1.94553909,203.56,203.49,9.34553909]
[1757013073539,1.94553909,203.56,203.49,7.4]
[1757013073734,1.94553909,203.56,203.49,9.34553909]
[1757013076932,1.94553909,203.56,203.5,7.4]
[1757013077133,1.94553909,203.57,203.52,7.4]
[1757013077640,1.94553909,203.57,203.52,7.65]
[1757013078140,1.94553909,203.59,203.52,7.65]
[1757013078340,1.94553909,203.59,203.54,7.65]
[1757013078739,5.26,203.63,203.54,7.65]
[1757013079040,1.94553909,203.61,203.56,7.65]
[1757013079641,1.94553909,203.61,203.55,1.94553909]
[1757013079843,1.94553909,203.61,203.48,72.89817291]
[1757013079844,1.94553909,203.59,203.49,7.65]
[1757013080142,1.94553909,203.59,203.53,7.65]
[1757013081140,1.94553909,203.6,203.54,1.94553909]
[1757013081441,1.94553909,203.61,203.55,7.65]
[1757013085042,1.94553909,203.62,203.55,7.65]
[1757013085238,5.23,203.63,203.57,7.65]
[1757013085840,7.17553909,203.66,203.59,7.65]
[1757013086146,7.17553909,203.66,203.6,1.94553909]
[1757013086842,7.17553909,203.66,203.61,7.65]
[1757013087043,7.17553909,203.66,203.55,7.65]
[1757013087348,7.17553909,203.66,203.61,7.65]
[1757013087543,7.17553909,203.66,203.6,1.94553909]
[1757013087945,7.17553909,203.66,203.61,7.65]
[1757013088351,7.17553909,203.66,203.6,1.94553909]
[1757013088943,7.17553909,203.66,203.61,7.65]
[1757013089344,5.23,203.7,203.62,1.94553909]
[1757013089647,1.94553909,203.68,203.62,1.94553909]
[1757013091449,5.23,203.7,203.63,7.65]
[1757013091641,7.17553909,203.7,203.63,7.65]
[1757013092145,1.94553909,203.68,203.62,1.94553909]
[1757013092542,1.94553909,203.68,203.63,7.65]
[1757013092944,1.94553909,203.68,203.62,9.59553909]
[1757013094448,1.94553909,203.68,203.62,7.65]
[1757013096847,1.94553909,203.68,203.64,7.65]
[1757013097052,1.94553909,203.68,203.63,1.94553909]
[1757013097247,1.94553909,203.68,203.64,7.65]
[1757013097945,10.67496723,203.71,203.64,7.65]
[1757013097946,5.44496723,203.71,203.65,1.94553909]
[1757013098159,1.94553909,203.74,203.68,7.65]
[1757013098955,7.17553909,203.74,203.68,7.65]
[1757013100050,5.23,203.74,203.68,7.65]
[1757013100249,7.17553909,203.75,203.68,7.65]
[1757013100556,1.94553909,203.73,203.67,7.65]
[1757013101258,5.23,203.74,203.68,1.94553909]
[1757013102352,7.17553909,203.74,203.68,1.94553909]
[1757013104756,5.23,203.71,203.67,7.65]
[1757013104948,1.94553909,203.72,203.67,7.65]
[1757013105348,5.23,203.69,203.62,7.65]
[1757013105550,5.23,203.69,203.63,1.94553909]
[1757013106157,5.23,203.69,203.63,9.59553909]
[1757013110964,5.23,203.69,203.63,7.65]
[1757013111265,1.94553909,203.68,203.63,7.65]
[1757013111466,5.25,203.67,203.63,7.65]
[1757013111666,5.25,203.67,203.62,1.94553909]
[1757013111866,5.25,203.67,203.63,7.81]
[1757013112268,5.25,203.67,203.62,1.94553909]
[1757013113664,1.94553909,203.68,203.63,7.81]
[1757013113867,7.19553909,203.7,203.64,9.75553909]
[1757013115973,7.19553909,203.7,203.64,7.81]
[1757013119069,1.94553909,203.66,203.6,7.81]
[1757013119275,1.94553909,203.68,203.62,7.81]
[1757013120173,1.94553909,203.69,203.62,7.81]
[1757013120676,5.25,203.7,203.64,7.81]
[1757013121680,5.25,203.68,203.64,7.81]
[1757013122677,5.25,203.68,203.63,1.94553909]
[1757013122875,5.25,203.68,203.64,7.81]
[1757013123070,5.25,203.68,203.63,1.94553909]
[1757013123477,5.25,203.68,203.6,4.4196]
[1757013123678,5.25,203.68,203.61,7.81]
[1757013126684,5.25,203.68,203.61,4.4194]
[1757013126885,5.25,203.68,203.62,7.81]
[1757013127979,3.03915313,203.69,203.62,7.81]
[1757013128184,5.25,203.68,203.62,7.81]
[1757013132990,5.25,203.71,203.62,7.81]
[1757013137487,5.25,203.71,203.64,7.81]
[1757013137693,5.23,203.75,203.65,8.07]
[1757013138094,3.03915313,203.75,203.65,8.07]
[1757013138494,5.2,203.74,203.65,8.07]
[1757013139394,5.2,203.73,203.65,8.07]
[1757013140091,3.03915313,203.72,203.65,8.07]
[1757013140297,5.2,203.71,203.65,8.07]
[1757013142099,5.2,203.71,203.62,3.03915313]
[1757013142299,3.03915313,203.72,203.62,11.10915313]
[1757013142597,5.2,203.71,203.62,11.10915313]
[1757013142995,5.2,203.7,203.62,8.07]
[1757013143596,5.2,203.71,203.62,8.07]
[1757013143798,5.2,203.68,203.62,8.07]
[1757013145994,8.23915313,203.71,203.62,8.07]
[1757013147399,8.23915313,203.71,203.63,8.07]
[1757013150999,3.03915313,203.71,203.63,8.07]
[1757013151202,5.2,203.7,203.63,8.07]
[1757013151403,5.2,203.7,203.59,15.21572604]
[1757013151697,3.03915313,203.71,203.59,15.21572604]
[1757013151901,5.2,203.7,203.59,15.21572604]
[1757013152205,3.03915313,203.71,203.59,15.21572604]
[1757013152406,5.2,203.7,203.59,15.21572604]
[1757013152602,3.03915313,203.71,203.59,15.21572604]
[1757013152807,5.2,203.7,203.59,15.21572604]
[1757013153302,3.03915313,203.71,203.59,15.21572604]
[1757013153501,5.2,203.7,203.59,15.21572604]
[1757013153808,3.03915313,203.71,203.6,8.07]
[1757013154207,5.2,203.7,203.6,8.07]
[1757013155109,5.2,203.7,203.6,4.10657291]
[1757013155407,5.2,203.7,203.61,8.07]
[1757013155906,5.2,203.7,203.61,4.4194]
[1757013156108,5.2,203.7,203.62,8.07]
[1757013157009,5.2,203.7,203.63,8.07]
[1757013161506,10.64496723,203.73,203.63,8.07]
[1757013162013,5.2,203.73,203.63,8.07]
[1757013163010,5.2,203.73,203.65,8.07]
[1757013165010,5.2,203.73,203.65,12.4885]
[1757013165212,5.2,203.73,203.66,8.07]
[1757013169812,5.2,203.74,203.66,8.07]
[1757013170010,3.03915313,203.7,203.63,7.38]
[1757013170314,5.2,203.69,203.63,7.38]
[1757013182121,5.2,203.7,203.63,7.38]
[1757013182519,5.2,203.69,203.63,7.38]
[1757013183228,5.2,203.67,203.59,7.38]
[1757013183620,10.64496723,203.7,203.62,7.38]
[1757013184029,5.2,203.7,203.62,7.38]
[1757013184430,5.2,203.7,203.63,4.4189]
[1757013184625,5.2,203.7,203.62,3.03915313]
[1757013184825,5.2,203.7,203.63,7.38]
[1757013185220,5.44496723,203.73,203.63,7.38]
[1757013185419,12.58917427,203.74,203.66,1.94420704]
[1757013185621,7.14420704,203.74,203.67,7.38]
[1757013186123,1.94420704,203.72,203.67,7.38]
[1757013186324,1.94420704,203.72,203.66,7.38]
[1757013193431,7.14420704,203.73,203.66,7.38]
[1757013194728,5.2,203.7,203.62,7.38]
[1757013194928,5.2,203.7,203.64,7.38]
[1757013195135,1.94420704,203.71,203.64,7.38]
[1757013197837,1.94420704,203.73,203.66,7.48]
[1757013202452,5.22,203.72,203.66,7.48]
[1757013203651,1.94420704,203.71,203.66,7.48]
[1757013203845,1.94420704,203.71,203.65,1.94420704]
[1757013204051,1.94420704,203.71,203.66,7.48]
[1757013204252,1.94420704,203.71,203.65,1.94420704]
[1757013204551,1.94420704,203.71,203.66,7.48]
[1757013204755,1.94420704,203.72,203.66,7.48]
[1757013204955,7.16420704,203.73,203.66,7.48]
[1757013206363,5.44496723,203.75,203.66,7.48]
[1757013206556,1.94420704,203.73,203.66,7.48]
[1757013208658,5.22,203.77,203.72,7.48]
[1757013208957,5.22,203.77,203.71,1.94420704]
[1757013209361,5.22,203.77,203.72,7.48]
[1757013209963,5.22,203.77,203.71,1.94420704]
[1757013210358,5.22,203.77,203.72,7.48]
[1757013210757,5.22,203.77,203.71,1.94420704]
[1757013210960,5.22,203.77,203.72,7.48]
[1757013211160,5.44496723,203.79,203.72,7.48]
[1757013211359,5.22,203.8,203.74,7.48]
[1757013211664,7.16420704,203.8,203.74,7.48]
[1757013214164,7.16420704,203.78,203.68,7.48]
[1757013214366,7.16420704,203.78,203.71,7.48]
[1757013219573,1.94420704,203.76,203.71,7.48]
[1757013219771,1.94420704,203.75,203.71,7.48]
[1757013219968,7.16420704,203.73,203.66,7.48]
[1757013220272,1.94420704,203.71,203.65,1.94420704]
[1757013220473,1.94420704,203.71,203.65,7.48]
[1757013220673,5.22,203.72,203.65,7.48]
[1757013220972,1.94420704,203.71,203.65,7.48]
[1757013223872,1.94420704,203.69,203.63,1.94420704]
[1757013224378,1.94420704,203.69,203.64,7.48]
[1757013224577,1.94420704,203.69,203.63,1.94420704]
[1757013225076,1.94420704,203.69,203.64,7.48]
[1757013225371,1.94420704,203.69,203.63,1.94420704]
[1757013225577,1.94420704,203.69,203.64,7.48]
[1757013225780,1.94420704,203.69,203.63,1.94420704]
[1757013225974,1.94420704,203.69,203.64,7.48]
[1757013226177,1.94420704,203.69,203.63,1.94420704]
[1757013226677,1.94420704,203.69,203.64,7.48]
[1757013227071,1.94420704,203.69,203.63,1.94420704]
[1757013227275,1.94420704,203.69,203.64,7.48]
[1757013227475,1.94420704,203.69,203.63,1.94420704]
[1757013227675,1.94420704,203.69,203.64,7.79]
[1757013228877,1.94420704,203.69,203.63,1.94420704]
[1757013229178,1.94420704,203.69,203.64,7.79]
[1757013229578,1.94420704,203.69,203.63,1.94420704]
[1757013229772,1.94420704,203.69,203.64,7.79]
[1757013230176,1.94420704,203.71,203.64,7.79]
[1757013232184,1.94420704,203.7,203.64,7.79]
[1757013234087,7.18420704,203.7,203.64,7.79]
[1757013236491,1.94420704,203.66,203.6,7.79]
[1757013237792,7.18420704,203.67,203.6,7.79]
[1757013239493,0.03586637,203.66,203.6,7.79]
[1757013239689,0.03586637,203.66,203.61,0.03503897]
[1757013239889,0.03586637,203.66,203.62,7.79]
[1757013240189,5.24,203.64,203.61,0.03503897]
[1757013240489,7.18420704,203.65,203.62,7.79]
[1757013240793,0.03586637,203.66,203.61,1.97924601]
[1757013240993,5.27586637,203.66,203.61,1.97924601]
[1757013241291,5.27586637,203.66,203.62,7.79]
[1757013241491,5.27586637,203.66,203.61,1.97924601]
[1757013241794,5.24,203.65,203.62,7.79]
[1757013242195,5.24,203.65,203.61,0.03503897]
[1757013242491,0.03586637,203.66,203.61,1.97924601]
[1757013242793,5.27586637,203.66,203.61,1.97924601]
[1757013242993,5.27586637,203.66,203.62,7.79]
[1757013243193,5.27586637,203.66,203.61,1.97924601]
[1757013243383,0.03586637,203.66,203.62,7.79]
[1757013243584,5.24,203.65,203.62,7.79]
[1757013244884,5.24,203.65,203.61,0.03503897]
[1757013245291,5.24,203.65,203.62,7.79]
[1757013245688,5.24,203.65,203.61,0.03503897]
[1757013245894,5.24,203.65,203.62,7.79]
[1757013247097,5.24,203.65,203.61,0.03503897]
[1757013247498,5.24,203.65,203.62,7.79]
[1757013247696,5.24,203.65,203.61,7.82503897]
[1757013247896,0.03586637,203.66,203.61,7.82503897]
[1757013248093,5.24,203.65,203.61,7.82503897]
[1757013248299,0.03586637,203.66,203.61,7.82503897]
[1757013248600,5.24,203.65,203.61,7.82503897]
[1757013248798,5.24,203.65,203.62,7.79]
[1757013249098,5.24,203.65,203.61,0.03503897]
[1757013249301,0.03586637,203.66,203.62,7.79]
[1757013249498,0.03586637,203.66,203.61,0.03503897]
[1757013249697,0.03586637,203.66,203.62,7.79]
[1757013249898,0.03586637,203.66,203.61,0.03503897]
[1757013250099,0.03586637,203.66,203.62,7.79]
[1757013250403,0.03586637,203.66,203.61,0.03503897]
[1757013250604,0.03586637,203.66,203.62,7.79]
[1757013250803,0.03586637,203.66,203.61,0.03503897]
[1757013251003,0.03586637,203.66,203.62,7.79]
[1757013252498,0.03586637,203.66,203.61,0.03503897]
[1757013253203,0.03586637,203.66,203.62,7.79]
[1757013253406,0.03586637,203.66,203.62,3.04006343]
[1757013253711,0.03586637,203.66,203.63,7.79]
[1757013255011,0.03586637,203.66,203.63,12.2089]
[1757013255307,0.03586637,203.66,203.64,7.79]
[1757013263316,0.03586637,203.66,203.64,7.99]
[1757013264013,0.03586637,203.66,203.63,4.4189]
[1757013264415,0.03586637,203.66,203.64,7.99]
[1757013264614,0.03586637,203.66,203.63,4.4189]
[1757013264917,0.03586637,203.66,203.64,7.99]
[1757013266214,0.03586637,203.66,203.63,4.4189]
[1757013266415,0.03586637,203.66,203.64,12.4087]
[1757013266616,0.03586637,203.66,203.65,7.99]
[1757013268020,0.03586637,203.66,203.65,11.03006343]
[1757013270217,0.03586637,203.66,203.65,7.99]
[1757013278126,0.03586637,203.66,203.63,7.99]
[1757013278127,5.29586637,203.66,203.63,7.99]
[1757013279725,0.03586637,203.66,203.62,3.04006343]
[1757013280225,0.03586637,203.66,203.63,7.99]
[1757013280422,0.03586637,203.66,203.62,3.04006343]
[1757013280929,0.03586637,203.66,203.63,7.99]
[1757013281332,0.03586637,203.66,203.62,3.04006343]
[1757013281528,0.03586637,203.66,203.63,7.99]
[1757013282130,0.03586637,203.66,203.62,3.04006343]
[1757013282433,0.03586637,203.66,203.63,7.99]
[1757013283028,0.03586637,203.66,203.63,4.4189]
[1757013283430,0.03586637,203.66,203.64,7.99]
[1757013284231,0.03586637,203.66,203.63,4.4189]
[1757013284434,0.03586637,203.66,203.64,7.99]
[1757013284827,0.03586637,203.66,203.63,7.99]
[1757013285233,0.03586637,203.66,203.62,3.04006343]
[1757013285831,0.03586637,203.66,203.63,7.99]
[1757013287650,0.03586637,203.66,203.62,7.45916343]
[1757013287935,0.03586637,203.66,203.63,7.76]
[1757013288931,0.03586637,203.66,203.62,7.45916343]
[1757013289138,0.03586637,203.66,203.63,7.76]
[1757013289735,0.03586637,203.66,203.62,7.45916343]
[1757013290639,0.03586637,203.66,203.63,7.76]
[1757013290843,0.03586637,203.66,203.62,7.45916343]
[1757013291241,0.03586637,203.66,203.63,7.76]
[1757013293049,0.03586637,203.66,203.64,7.76]
[1757013293241,0.03586637,203.66,203.65,10.80006343]
[1757013294947,5.26,203.76,203.67,7.76]
[1757013295149,5.26,203.76,203.69,7.76]
[1757013296344,5.26,203.76,203.7,0.03569694]
[1757013302250,5.26,203.78,203.71,7.76]
[1757013302656,5.26,203.78,203.72,7.76]
[1757013303754,5.26,203.79,203.72,7.76]
[1757013304145,8.48503066,203.8,203.72,7.76]
[1757013304350,5.26,203.78,203.7,0.03569694]
[1757013306155,5.26,203.76,203.7,0.03569694]
[1757013307548,5.26,203.74,203.7,0.03569694]
[1757013307746,1.94400645,203.75,203.7,0.03569694]
[1757013307950,5.26,203.74,203.68,1.94400645]
[1757013308151,1.94400645,203.75,203.7,0.03709752]
[1757013308655,5.44496723,203.79,203.7,7.79709752]
[1757013308855,5.26,203.74,203.7,7.79709752]
[1757013309056,1.94400645,203.75,203.7,7.79709752]
[1757013309057,5.26,203.78,203.72,1.94400645]
[1757013309252,5.26,203.78,203.74,1.94400645]
[1757013309459,7.38897368,203.81,203.74,1.94400645]
[1757013309658,5.26,203.8,203.74,1.97703888]
[1757013310650,5.26,203.8,203.74,0.03303243]
[1757013310949,5.44496723,203.82,203.74,0.03303243]
[1757013310950,5.26,203.76,203.74,0.03303243]
[1757013311150,1.94400645,203.77,203.74,0.03303243]
[1757013311350,5.26,203.76,203.74,0.03303243]
[1757013311553,1.94400645,203.79,203.74,0.03303243]
[1757013311960,5.26,203.78,203.74,0.03303243]
[1757013312150,1.94400645,203.77,203.74,0.03303243]
[1757013312357,5.26,203.76,203.74,0.03303243]
[1757013313158,1.94400645,203.77,203.74,0.03303243]
[1757013313359,5.26,203.76,203.74,0.03303243]
[1757013313564,1.94400645,203.77,203.74,0.03303243]
[1757013313759,5.26,203.76,203.74,0.03303243]
[1757013315967,5.26,203.8,203.74,7.79303243]
[1757013316566,1.94400645,203.79,203.74,7.79303243]
[1757013316766,5.26,203.78,203.74,0.03303243]
[1757013317766,1.94400645,203.79,203.74,0.03303243]
[1757013318256,5.26,203.78,203.74,0.03303243]
[1757013318460,1.94400645,203.79,203.74,0.03303243]
[1757013318662,5.3,203.78,203.74,0.03303243]
[1757013318862,5.3,203.78,203.74,8.09303243]
[1757013319259,5.3,203.8,203.74,8.09303243]
[1757013320559,5.3,203.78,203.74,0.03303243]
[1757013320764,1.94400645,203.77,203.74,0.03303243]
[1757013320964,5.3,203.76,203.74,0.03303243]
[1757013321268,1.94400645,203.77,203.74,0.03303243]
[1757013321269,5.3,203.77,203.74,0.03303243]
[1757013321966,1.94400645,203.78,203.74,0.03303243]
[1757013322170,5.3,203.77,203.74,0.03303243]
[1757013322566,1.94400645,203.81,203.75,8.06]
[1757013322867,72.77936381,203.83,203.74,0.03303243]
[1757013322868,5.3,203.78,203.74,0.03303243]
[1757013323064,1.94400645,203.79,203.74,0.03303243]
[1757013323867,5.3,203.78,203.74,0.03303243]
[1757013324170,5.3,203.77,203.74,0.03303243]
[1757013324469,5.3,203.78,203.74,0.03303243]
[1757013324868,1.94400645,203.79,203.74,0.03303243]
[1757013325070,5.3,203.78,203.74,0.03303243]
[1757013325266,1.94400645,203.79,203.74,0.03303243]
[1757013325462,5.3,203.78,203.74,0.03303243]
[1757013325867,1.94400645,203.79,203.74,0.03303243]
[1757013326171,5.3,203.78,203.74,0.03303243]
[1757013326372,1.94400645,203.79,203.74,0.03303243]
[1757013326670,5.3,203.78,203.74,0.03303243]
[1757013326870,1.94400645,203.79,203.74,0.03303243]
[1757013327372,1.94400645,203.79,203.74,8.09303243]
[1757013328270,1.94400645,203.79,203.74,0.03303243]
[1757013328669,1.94400645,203.79,203.74,8.09303243]
[1757013328871,5.3,203.78,203.74,8.09303243]
[1757013329070,1.94400645,203.79,203.74,8.09303243]
[1757013329270,5.3,203.78,203.74,8.09303243]
[1757013329470,1.94400645,203.79,203.74,8.09303243]
[1757013329670,1.94400645,203.77,203.74,0.03303243]
[1757013330070,5.3,203.76,203.74,0.03303243]
[1757013330272,1.94400645,203.77,203.74,0.03303243]
[1757013330469,5.3,203.76,203.74,0.03303243]
[1757013330674,1.94400645,203.75,203.74,0.03303243]
[1757013330876,7.24400645,203.75,203.74,0.03303243]
[1757013331572,5.3,203.75,203.74,0.03303243]
[1757013336676,5.3,203.77,203.74,0.03303243]
[1757013336880,1.94400645,203.78,203.74,0.03303243]
[1757013337078,5.3,203.77,203.74,0.03303243]
[1757013337277,1.94400645,203.78,203.74,0.03303243]
[1757013337475,5.3,203.77,203.74,0.03303243]
[1757013337675,1.94400645,203.78,203.74,0.03303243]
[1757013337870,5.3,203.77,203.74,0.03303243]
[1757013338081,1.94400645,203.78,203.74,0.03303243]
[1757013338278,5.3,203.8,203.74,0.03303243]
[1757013338480,1.94400645,203.78,203.74,0.03303243]
[1757013338675,5.3,203.77,203.74,0.03303243]
[1757013338882,5.3,203.77,203.74,8.09303243]
[1757013339282,5.44496723,203.82,203.75,8.06]
[1757013339583,1.94400645,203.8,203.75,8.06]
[1757013339785,5.3,203.79,203.75,8.06]
[1757013340184,1.94400645,203.8,203.75,8.06]
[1757013340484,5.3,203.79,203.75,8.06]
[1757013340679,1.94400645,203.8,203.75,8.06]
[1757013340884,5.3,203.79,203.75,8.06]
[1757013341183,1.94400645,203.8,203.75,8.06]
[1757013341384,5.3,203.79,203.75,8.06]
[1757013341586,5.3,203.77,203.74,8.09303243]
[1757013342992,5.3,203.77,203.74,0.03303243]
[1757013343192,5.3,203.78,203.75,8.06]
[1757013343492,5.3,203.78,203.74,0.03303243]
[1757013343682,5.3,203.78,203.75,8.06]
[1757013344087,5.3,203.78,203.74,0.03303243]
[1757013344286,5.3,203.78,203.75,8.06]
[1757013344684,5.3,203.78,203.74,0.03303243]
[1757013345192,5.3,203.78,203.75,8.06]
[1757013345390,5.3,203.79,203.75,8.06]
[1757013345787,1.94400645,203.8,203.75,8.06]
[1757013345992,5.3,203.79,203.75,8.06]
[1757013346193,1.94400645,203.8,203.75,8.06]
[1757013346586,5.3,203.79,203.75,8.06]
[1757013346895,1.94400645,203.8,203.75,8.06]
[1757013347490,5.3,203.79,203.75,8.06]
[1757013347892,5.27,203.79,203.75,8.06]
[1757013348390,1.94400645,203.8,203.75,8.06]
[1757013348589,5.27,203.79,203.75,8.06]
[1757013348785,1.94400645,203.8,203.75,8.06]
[1757013348990,5.27,203.79,203.75,8.06]
[1757013349294,5.27,203.79,203.75,7.35]
[1757013349595,5.27,203.79,203.74,0.03303243]
[1757013349596,5.27,203.75,203.74,0.03303243]
[1757013349898,5.27,203.69,203.66,7.35]
[1757013350293,1.94400645,203.69,203.63,7.35]
[1757013351997,1.94400645,203.69,203.63,11.7689]
[1757013353694,7.21400645,203.69,203.63,7.35]
[1757013355000,7.21400645,203.69,203.64,1.94400645]
[1757013355197,7.21400645,203.69,203.65,7.35]
[1757013355396,7.21400645,203.69,203.64,1.94400645]
[1757013355597,7.21400645,203.69,203.65,7.35]
[1757013355796,7.21400645,203.69,203.64,1.94400645]
[1757013355998,7.21400645,203.69,203.65,7.35]
[1757013356400,7.21400645,203.69,203.64,1.94400645]
[1757013356699,120.34,203.76,203.61,8.5055518]
[1757013356700,1.94400645,203.67,203.61,7.35]
[1757013358207,5.27,203.64,203.58,1.94400645]
[1757013358498,5.27,203.64,203.57,9.29400645]
[1757013358695,7.21400645,203.64,203.58,7.35]
[1757013359204,7.21400645,203.64,203.58,9.29400645]
[1757013359897,7.21400645,203.64,203.58,7.35]
[1757013360695,14.75,203.73,203.62,7.35]
[1757013360696,5.27,203.68,203.62,7.35]
[1757013360904,7.21400645,203.68,203.62,7.35]
[1757013362201,5.44496723,203.74,203.63,1.94400645]
[1757013362402,1.94400645,203.69,203.63,1.94400645]
[1757013362604,7.21400645,203.71,203.65,9.29400645]
[1757013362800,5.27,203.71,203.65,9.29400645]
[1757013362996,14.75,203.78,203.57,68.7615]
[1757013362997,7.21400645,203.74,203.67,1.94400645]
[1757013363202,7.21400645,203.74,203.66,7.35]
[1757013363399,7.21400645,203.74,203.66,9.29400645]
[1757013363996,1.94400645,203.72,203.66,9.29400645]
[1757013365002,7.21400645,203.72,203.66,9.29400645]
[1757013366100,7.21400645,203.72,203.66,7.35]
[1757013366302,5.27,203.77,203.67,1.94400645]
[1757013366509,5.27,203.72,203.68,7.35]
[1757013366904,1.94400645,203.73,203.68,7.35]
[1757013367104,5.27,203.72,203.68,7.35]
[1757013367409,1.94400645,203.71,203.65,1.94400645]
[1757013367607,1.94400645,203.71,203.65,9.29400645]
[1757013367808,7.21400645,203.72,203.65,9.29400645]
[1757013368007,1.94400645,203.72,203.67,1.94400645]
[1757013368213,1.94400645,203.74,203.68,7.35]
[1757013368403,7.21400645,203.74,203.7,7.35]
[1757013369109,7.21400645,203.74,203.69,1.94400645]
[1757013369403,1.94400645,203.74,203.67,4.418]
[1757013369610,5.27,203.77,203.68,7.35]
[1757013370010,5.27,203.77,203.68,11.7678]
[1757013370312,5.27,203.77,203.69,7.35]
[1757013370610,5.27,203.77,203.7,7.35]
[1757013372521,31.1,203.79,203.7,7.35]
[1757013373408,31.1,203.79,203.72,7.35]
[1757013373614,36.37,203.79,203.72,7.35]
[1757013374212,36.37,203.79,203.71,4.4172]
[1757013374213,5.27,203.78,203.65,4.0861518]
[1757013374413,3.03732084,203.78,203.66,10.38732084]
[1757013374714,5.27,203.77,203.67,7.35]
[1757013376816,3.03732084,203.78,203.67,7.35]
[1757013377518,3.03732084,203.75,203.67,7.35]
[1757013377713,5.27,203.74,203.67,7.35]
[1757013378616,3.03732084,203.75,203.67,7.35]
[1757013378819,5.26,203.74,203.67,7.35]
[1757013380420,3.03732084,203.69,203.58,7.75]
[1757013380721,5.26,203.65,203.58,7.75]
[1757013382718,5.26,203.62,203.55,7.75]
[1757013383320,3.03732084,203.63,203.55,7.75]
[1757013383514,5.26,203.62,203.55,7.75]
[1757013388218,3.03732084,203.6,203.48,7.75]
[1757013388419,5.26,203.59,203.48,7.75]
[1757013388828,5.26,203.59,203.52,7.78477931]
[1757013392931,3.03732084,203.58,203.52,7.78477931]
[1757013394133,129.44496723,203.67,203.52,7.78477931]
[1757013394340,3.03732084,203.6,203.52,7.78477931]
[1757013394536,3.03732084,203.6,203.52,7.75]
[1757013394829,3.03732084,203.6,203.55,7.75]
[1757013395035,3.03732084,203.6,203.54,7.78168689]
[1757013398228,5.26,203.59,203.54,7.78168689]
[1757013398433,3.03732084,203.6,203.54,7.78168689]
[1757013398736,3.03732084,203.6,203.54,0.03168689]
[1757013398737,8.29732084,203.6,203.54,0.03168689]
[1757013402935,8.29732084,203.6,203.54,7.78168689]
[1757013407643,5.26,203.63,203.54,7.78168689]
[1757013409139,3.03732084,203.64,203.54,7.78168689]
[1757013409644,5.27,203.63,203.54,7.78168689]
[1757013410337,3.03732084,203.61,203.54,7.78168689]
[1757013410542,5.27,203.57,203.54,0.03168689]
[1757013410740,3.03732084,203.58,203.54,0.03168689]
[1757013410939,5.27,203.57,203.54,0.03168689]
[1757013411548,3.03732084,203.58,203.54,0.03168689]
[1757013411948,5.27,203.57,203.54,0.03168689]
[1757013412645,3.03732084,203.58,203.54,0.03168689]
[1757013412846,5.27,203.57,203.54,0.03168689]
[1757013413446,5.27,203.57,203.54,8.05168689]
[1757013414252,3.03732084,203.58,203.54,0.03168689]
[1757013414443,5.27,203.57,203.54,0.03168689]